fUSD/lending_fUSD_20260629
["ID","MTS","AMOUNT","RATE_DAILY","PERIOD"]
[426685058,1782743446000,-188.24314502,0.00028954,2]
[426685055,1782743446000,-584.18782077,0.000289,2]
[426685182,1782743447000,-500.0,0.00029,7]
[426685164,1782743447000,-500.0,0.00029,7]
[426685186,1782743447000,-500.0,0.00029,7]
[426685178,1782743447000,-500.0,0.00029,7]
[426685184,1782743447000,-500.0,0.00029,7]
[426685162,1782743447000,-500.0,0.00029,7]
[426685174,1782743447000,-500.0,0.00029,7]
[426685172,1782743447000,-500.0,0.00029,7]
[426685170,1782743447000,-500.0,0.00029,7]
[426685192,1782743447000,-500.0,0.00029,7]
[426685188,1782743447000,-500.0,0.00029,7]
[426685176,1782743447000,-500.0,0.00029,7]
[426685201,1782743447000,-248.85,0.00029,7]
[426685190,1782743447000,-500.0,0.00029,7]
[426685194,1782743447000,-440.05,0.00029,7]
[426685205,1782743447000,-280.58851571,0.00029,2]
[426685203,1782743447000,-174.19,0.00029,7]
[426685207,1782743447000,-150.0,0.00029,7]
[426685211,1782743447000,-151.09934801,0.00029058,2]
[426685196,1782743447000,-169.28,0.00029,7]
[426685209,1782743447000,-1050.21,0.00029,30]
[426685198,1782743447000,-177.74,0.00029,7]
[426685214,1782743447000,-1084.37728691,0.00029093,2]
[426685217,1782743447000,-1331.68225751,0.00029093,2]
[426685159,1782743447000,-500.0,0.00029,7]
[426685180,1782743447000,-500.0,0.00029,7]
[426685168,1782743447000,-500.0,0.00029,7]
[426685103,1782743447000,-500.0,0.00029,7]
[426685166,1782743447000,-500.0,0.00029,7]
[426685220,1782743447000,-1218.38021925,0.00029094,2]
[426685105,1782743447000,-500.0,0.00029,7]
[426685120,1782743447000,-500.0,0.00029,7]
[426685111,1782743447000,-500.0,0.00029,7]
[426685107,1782743447000,-500.0,0.00029,7]
[426685116,1782743447000,-500.0,0.00029,7]
[426685109,1782743447000,-500.0,0.00029,7]
[426685114,1782743447000,-500.0,0.00029,7]
[426685122,1782743447000,-500.0,0.00029,7]
[426685129,1782743447000,-500.0,0.00029,7]
[426685127,1782743447000,-500.0,0.00029,7]
[426685125,1782743447000,-500.0,0.00029,7]
[426685131,1782743447000,-500.0,0.00029,7]
[426685133,1782743447000,-500.0,0.00029,7]
[426685135,1782743447000,-500.0,0.00029,7]
[426685143,1782743447000,-500.0,0.00029,7]
[426685141,1782743447000,-500.0,0.00029,7]
[426685139,1782743447000,-500.0,0.00029,7]
[426685137,1782743447000,-500.0,0.00029,7]
[426685147,1782743447000,-500.0,0.00029,7]
[426685145,1782743447000,-500.0,0.00029,7]
[426685149,1782743447000,-500.0,0.00029,7]
[426685155,1782743447000,-500.0,0.00029,7]
[426685153,1782743447000,-500.0,0.00029,7]
[426685151,1782743447000,-500.0,0.00029,7]
[426685157,1782743447000,-500.0,0.00029,7]
[426685224,1782743447000,-396.34,0.000291,7]
[426685119,1782743447000,-500.0,0.00029,7]
[426685227,1782743447000,-13723.48889787,0.00029124,2]
[426685292,1782743447000,-151.09934801,0.00029643,2]
[426685289,1782743447000,-396.34,0.000296,7]
[426685301,1782743447000,-154.0,0.00029694,30]
[426685303,1782743447000,-158.0,0.00029694,30]
[426685306,1782743447000,-274.0,0.00029694,30]
[426685299,1782743447000,-155.0,0.00029694,30]
[426685308,1782743447000,-243.0,0.00029694,30]
[426685310,1782743447000,-158.0,0.00029697,30]
[426685318,1782743447000,-635.0,0.00029697,30]
[426685312,1782743447000,-156.0,0.00029697,30]
[426685316,1782743447000,-158.0,0.00029697,30]
[426685315,1782743447000,-153.0,0.00029697,30]
[426685314,1782743447000,-786.0,0.00029697,30]
[426685322,1782743447000,-151.0,0.00029697,30]
[426685320,1782743447000,-160.0,0.00029697,30]
[426685324,1782743447000,-2000.0,0.00029764,7]
[426685326,1782743447000,-1265.22153303,0.000298,2]
[426685330,1782743447000,-1094.57677152,0.000298,2]
[426685332,1782743447000,-1831.98,0.00029808,2]
[426685328,1782743447000,-10064.13357195,0.000298,2]
[426685336,1782743447000,-1200.0,0.000299,10]
[426685334,1782743447000,-500.0,0.00029895,19]
[426685340,1782743447000,-253.33185221,0.000299,2]
[426685338,1782743447000,-253.3318523,0.000299,2]
[426685342,1782743447000,-151.09934801,0.00029935,2]
[426685291,1782743447000,-5528.0,0.000296,5]
[426685287,1782743447000,-200.0,0.00029563,2]
[426685222,1782743447000,-1203.22897781,0.00029094,2]
[426685295,1782743447000,-1831.98,0.00029644,2]
[426685297,1782743447000,-286.87759964,0.00029644,2]
[426685230,1782743447000,-1265.22153303,0.000292,2]
[426685240,1782743447000,-584.18782077,0.000292,2]
[426685246,1782743447000,-345.34,0.00029224,120]
[426685242,1782743447000,-1094.57677152,0.000292,2]
[426685244,1782743447000,-214.09006206,0.00029222,7]
[426685233,1782743447000,-492.97629467,0.000292,2]
[426685237,1782743447000,-10064.13357195,0.000292,2]
[426685261,1782743447000,-1831.98,0.00029315,2]
[426685265,1782743447000,-150.0,0.00029372,2]
[426685250,1782743447000,-280.9090909,0.00029249,2]
[426685268,1782743447000,-502.0,0.00029434,13]
[426685263,1782743447000,-151.09934801,0.0002935,2]
[426685248,1782743447000,-319.55,0.00029225,120]
[426685253,1782743447000,-3962.58570964,0.00029263,14]
[426685267,1782743447000,-1950.77,0.00029399,7]
[426685277,1782743447000,-492.97629467,0.000295,2]
[426685280,1782743447000,-584.18782077,0.000295,2]
[426685278,1782743447000,-10064.13357195,0.000295,2]
[426685275,1782743447000,-1265.22153303,0.000295,2]
[426685282,1782743447000,-1094.57677152,0.000295,2]
[426685273,1782743447000,-396.34,0.000295,7]
[426685285,1782743447000,-396.34,0.000295,7]
[426685271,1782743447000,-1831.98,0.00029479,2]
[426685259,1782743447000,-216.58458871,0.000293,7]
[426685255,1782743447000,-1295.66,0.000293,7]
[426685257,1782743447000,-1859.14,0.000293,7]
[426685419,1782743448000,-1000.13,0.00030136,2]
[426685420,1782743448000,-1000.13,0.00030136,2]
[426685421,1782743448000,-1000.13,0.00030136,2]
[426685417,1782743448000,-1000.13,0.00030136,2]
[426685409,1782743448000,-1000.13,0.00030136,2]
[426685406,1782743448000,-1000.13,0.00030136,2]
[426685402,1782743448000,-1000.13,0.00030136,2]
[426685411,1782743448000,-1000.13,0.00030136,2]
[426685404,1782743448000,-1000.13,0.00030136,2]
[426685423,1782743448000,-1000.13,0.00030136,2]
[426685413,1782743448000,-1000.13,0.00030136,2]
[426685415,1782743448000,-1000.13,0.00030136,2]
[426685435,1782743448000,-402.18706998,0.00030136,2]
[426685425,1782743448000,-1000.13,0.00030136,2]
[426685424,1782743448000,-1000.13,0.00030136,2]
[426685422,1782743448000,-1000.13,0.00030136,2]
[426685437,1782743448000,-300.0,0.00030136,2]
[426685427,1782743448000,-1000.13,0.00030136,2]
[426685429,1782743448000,-1000.13,0.00030136,2]
[426685426,1782743448000,-1000.13,0.00030136,2]
[426685428,1782743448000,-1000.13,0.00030136,2]
[426685430,1782743448000,-1000.13,0.00030136,2]
[426685433,1782743448000,-500.0,0.00030136,2]
[426685431,1782743448000,-1000.13,0.00030136,2]
[426685400,1782743448000,-200.19064482,0.00030136,2]
[426685418,1782743448000,-1000.13,0.00030136,2]
[426685408,1782743448000,-1000.13,0.00030136,2]
[426685372,1782743448000,-10064.13357195,0.000301,2]
[426685396,1782743448000,-500.0,0.00030136,15]
[426685434,1782743448000,-502.7070817,0.00030136,2]
[426685344,1782743448000,-1831.98,0.00029973,2]
[426685354,1782743448000,-9999.91,0.0003,2]
[426685358,1782743448000,-200.14986379,0.0003,2]
[426685360,1782743448000,-800.0,0.0003,2]
[426685356,1782743448000,-22499.93,0.0003,2]
[426685357,1782743448000,-10638.53,0.0003,2]
[426685362,1782743448000,-800.0,0.0003,2]
[426685346,1782743448000,-189.16850594,0.00029999,10]
[426685350,1782743448000,-14351.61,0.0003,2]
[426685348,1782743448000,-12499.93,0.0003,2]
[426685364,1782743448000,-345.34,0.00030046,120]
[426685398,1782743448000,-574.24997663,0.00030136,15]
[426685352,1782743448000,-14999.98,0.0003,2]
[426685370,1782743448000,-1265.22153303,0.000301,2]
[426685374,1782743448000,-1094.57677152,0.000301,2]
[426685386,1782743448000,-500.0,0.00030136,15]
[426685378,1782743448000,-504.2741242,0.00030109,31]
[426685384,1782743448000,-500.0,0.00030136,15]
[426685388,1782743448000,-500.0,0.00030136,15]
[426685376,1782743448000,-396.34,0.000301,7]
[426685380,1782743448000,-500.0,0.00030136,15]
[426685382,1782743448000,-500.0,0.00030136,15]
[426685390,1782743448000,-500.0,0.00030136,15]
[426685392,1782743448000,-500.0,0.00030136,15]
[426685394,1782743448000,-500.0,0.00030136,15]
[426685368,1782743448000,-681.54,0.00030066,14]
[426685436,1782743448000,-500.0,0.00030136,2]
[426685366,1782743448000,-319.55,0.00030047,120]
[426685438,1782743448000,-300.0,0.00030136,2]
[426685468,1782743448000,-251.0,0.0003036,2]
[426685469,1782743448000,-251.0,0.0003036,2]
[426685464,1782743448000,-1334.76,0.00030232,2]
[426685472,1782743448000,-10064.13357195,0.000304,2]
[426685467,1782743448000,-251.0,0.0003036,2]
[426685475,1782743448000,-800.0,0.000305,2]
[426685477,1782743448000,-151.09934801,0.00030519,2]
[426685481,1782743448000,-7049.163,0.00030663,26]
[426685484,1782743448000,-251.0,0.0003069,2]
[426685478,1782743448000,-166.94677474,0.00030542,2]
[426685480,1782743448000,-224.0,0.00030623,2]
[426685486,1782743448000,-251.0,0.0003069,2]
[426685471,1782743448000,-1265.22153303,0.000304,2]
[426685482,1782743448000,-423.502,0.00030663,26]
[426685474,1782743448000,-152.5325826,0.00030477,7]
[426685483,1782743448000,-251.0,0.0003069,2]
[426685479,1782743448000,-396.34,0.000306,7]
[426685485,1782743448000,-251.0,0.0003069,2]
[426685492,1782743448000,-154.0,0.00030694,30]
[426685491,1782743448000,-155.0,0.00030694,30]
[426685494,1782743448000,-274.0,0.00030694,30]
[426685488,1782743448000,-251.0,0.0003069,2]
[426685490,1782743448000,-251.0,0.0003069,2]
[426685489,1782743448000,-251.0,0.0003069,2]
[426685487,1782743448000,-251.0,0.0003069,2]
[426685432,1782743448000,-1000.19777974,0.00030136,2]
[426685476,1782743448000,-800.0,0.000305,2]
[426685462,1782743448000,-152.5325826,0.0003018,5]
[426685493,1782743448000,-158.0,0.00030694,30]
[426685466,1782743448000,-305.11921922,0.0003036,2]
[426685470,1782743448000,-229.64887735,0.00030371,2]
[426685441,1782743448000,-300.0,0.00030136,2]
[426685445,1782743448000,-300.0,0.00030136,2]
[426685444,1782743448000,-300.0,0.00030136,2]
[426685449,1782743448000,-300.0,0.00030136,2]
[426685448,1782743448000,-300.0,0.00030136,2]
[426685439,1782743448000,-300.0,0.00030136,2]
[426685447,1782743448000,-300.0,0.00030136,2]
[426685442,1782743448000,-300.0,0.00030136,2]
[426685443,1782743448000,-300.0,0.00030136,2]
[426685446,1782743448000,-300.0,0.00030136,2]
[426685451,1782743448000,-185.67251033,0.00030136,2]
[426685450,1782743448000,-300.0,0.00030136,2]
[426685440,1782743448000,-300.0,0.00030136,2]
[426685453,1782743448000,-158.0630318,0.00030137,2]
[426685452,1782743448000,-181.36,0.00030137,2]
[426685465,1782743448000,-502.0,0.00030263,14]
[426685461,1782743448000,-317.0,0.0003016,2]
[426685460,1782743448000,-875.0,0.0003016,2]
[426685458,1782743448000,-1000.0,0.00030137,4]
[426685463,1782743448000,-151.09934801,0.00030227,2]
[426685459,1782743448000,-1831.97928048,0.00030137,2]
[426685454,1782743448000,-316.12606361,0.00030137,2]
[426685457,1782743448000,-152.5325826,0.00030137,2]
[426685456,1782743448000,-436.96599853,0.00030137,2]
[426685455,1782743448000,-218.48299926,0.00030137,2]
[426685473,1782743448000,-1094.57677152,0.000304,2]
[426685519,1782743449000,-251.0,0.0003102,2]
[426685522,1782743449000,-251.0,0.0003102,2]
[426685529,1782743449000,-189.16850594,0.00031286,10]
[426685528,1782743449000,-13723.48889787,0.00031196,2]
[426685524,1782743449000,-251.0,0.0003102,2]
[426685527,1782743449000,-151.09934801,0.00031104,2]
[426685523,1782743449000,-251.0,0.0003102,2]
[426685525,1782743449000,-251.0,0.0003102,2]
[426685526,1782743449000,-502.0,0.00031092,14]
[426685530,1782743449000,-189.16850594,0.00031286,10]
[426685539,1782743449000,-229.64887735,0.00031371,2]
[426685534,1782743449000,-251.0,0.0003135,2]
[426685531,1782743449000,-152.5325826,0.00031286,10]
[426685533,1782743449000,-251.0,0.0003135,2]
[426685537,1782743449000,-251.0,0.0003135,2]
[426685536,1782743449000,-251.0,0.0003135,2]
[426685538,1782743449000,-685.34,0.00031366,60]
[426685535,1782743449000,-251.0,0.0003135,2]
[426685521,1782743449000,-251.0,0.0003102,2]
[426685540,1782743449000,-151.09934801,0.00031396,2]
[426685532,1782743449000,-10064.13357195,0.000313,2]
[426685520,1782743449000,-251.0,0.0003102,2]
[426685505,1782743449000,-1950.77,0.00030732,14]
[426685507,1782743449000,-151.09934801,0.00030812,2]
[426685543,1782743449000,-854.57,0.00031507,6]
[426685495,1782743449000,-243.0,0.00030694,30]
[426685496,1782743449000,-786.0,0.00030697,30]
[426685498,1782743449000,-158.0,0.00030697,30]
[426685497,1782743449000,-153.0,0.00030697,30]
[426685499,1782743449000,-635.0,0.00030697,30]
[426685501,1782743449000,-151.0,0.00030697,30]
[426685500,1782743449000,-160.0,0.00030697,30]
[426685502,1782743449000,-1265.22153303,0.000307,2]
[426685504,1782743449000,-1094.57677152,0.000307,2]
[426685513,1782743449000,-1265.22153303,0.00031,2]
[426685506,1782743449000,-500.0,0.00030792,21]
[426685517,1782743449000,-800.0,0.00031,2]
[426685516,1782743449000,-1000.0,0.00031,7]
[426685515,1782743449000,-1094.57677152,0.00031,2]
[426685510,1782743449000,-319.57,0.00030869,120]
[426685511,1782743449000,-219.19145871,0.00030941,2]
[426685509,1782743449000,-345.34,0.00030868,120]
[426685514,1782743449000,-10064.13357195,0.00031,2]
[426685518,1782743449000,-800.0,0.00031,2]
[426685508,1782743449000,-150.0,0.00030841,2]
[426685512,1782743449000,-1239.28832789,0.00030986,2]
[426685503,1782743449000,-10064.13357195,0.000307,2]
[426685548,1782743449000,-155.0,0.00031694,30]
[426685547,1782743449000,-345.34,0.0003169,120]
[426685544,1782743449000,-166.94677474,0.00031542,2]
[426685569,1782743449000,-150.0,0.00031833,30]
[426685573,1782743449000,-150.0,0.00031833,30]
[426685574,1782743449000,-151.13233997,0.00031833,30]
[426685577,1782743449000,-10064.13357195,0.000319,2]
[426685576,1782743449000,-150.0,0.00031833,30]
[426685575,1782743449000,-150.0,0.00031833,30]
[426685578,1782743449000,-502.0,0.00031921,15]
[426685581,1782743449000,-399.69146784,0.00031997,2]
[426685582,1782743449000,-5577.7732,0.00032,2]
[426685579,1782743449000,-150.0,0.0003194,30]
[426685580,1782743449000,-151.09934801,0.00031981,2]
[426685583,1782743449000,-800.0,0.00032,5]
[426685586,1782743449000,-1950.77,0.00032064,14]
[426685585,1782743449000,-150.0,0.00032047,30]
[426685584,1782743449000,-800.0,0.00032,5]
[426685587,1782743449000,-150.0,0.00032154,30]
[426685590,1782743449000,-10064.13357195,0.000322,2]
[426685589,1782743449000,-2280.56935788,0.00032164,7]
[426685591,1782743449000,-1887.79,0.00032232,7]
[426685545,1782743449000,-10064.13357195,0.000316,2]
[426685592,1782743449000,-370.82,0.00032232,7]
[426685566,1782743449000,-150.0,0.00031833,30]
[426685572,1782743449000,-283.83603472,0.00031833,30]
[426685588,1782743449000,-150.0,0.00032154,30]
[426685570,1782743449000,-150.0,0.00031833,30]
[426685567,1782743449000,-151.14744993,0.00031833,30]
[426685546,1782743449000,-151.09934801,0.00031688,2]
[426685541,1782743449000,-800.0,0.000315,2]
[426685549,1782743449000,-154.0,0.00031694,30]
[426685550,1782743449000,-274.0,0.00031694,30]
[426685552,1782743449000,-786.0,0.00031697,30]
[426685551,1782743449000,-243.0,0.00031694,30]
[426685553,1782743449000,-153.0,0.00031697,30]
[426685558,1782743449000,-226.15409277,0.000317,2]
[426685555,1782743449000,-635.0,0.00031697,30]
[426685559,1782743449000,-226.15409275,0.000317,2]
[426685542,1782743449000,-800.0,0.000315,2]
[426685557,1782743449000,-151.0,0.00031697,30]
[426685556,1782743449000,-160.0,0.00031697,30]
[426685560,1782743449000,-226.15409275,0.000317,2]
[426685561,1782743449000,-500.0,0.00031716,22]
[426685562,1782743449000,-202.23,0.0003178,3]
[426685565,1782743449000,-150.0,0.00031833,30]
[426685564,1782743449000,-150.0,0.00031833,30]
[426685571,1782743449000,-150.0,0.00031833,30]
[426685568,1782743449000,-151.14861335,0.00031833,30]
[426685563,1782743449000,-1859.14,0.000318,7]
[426685554,1782743449000,-158.0,0.00031697,30]
[426685626,1782743450000,-153.0,0.00032697,30]
[426685622,1782743450000,-154.0,0.00032694,30]
[426685623,1782743450000,-274.0,0.00032694,30]
[426685620,1782743450000,-150.0,0.0003269,30]
[426685621,1782743450000,-155.0,0.00032694,30]
[426685617,1782743450000,-396.34,0.000326,7]
[426685618,1782743450000,-352.64707502,0.00032662,2]
[426685625,1782743450000,-786.0,0.00032697,30]
[426685624,1782743450000,-243.0,0.00032694,30]
[426685630,1782743450000,-151.0,0.00032697,30]
[426685627,1782743450000,-158.0,0.00032697,30]
[426685629,1782743450000,-160.0,0.00032697,30]
[426685632,1782743450000,-150.0,0.00032717,30]
[426685638,1782743450000,-150.0,0.00032798,30]
[426685634,1782743450000,-502.0,0.0003275,16]
[426685635,1782743450000,-5927.79123494,0.00032763,28]
[426685636,1782743450000,-8020.5048,0.00032763,28]
[426685633,1782743450000,-150.0,0.00032717,30]
[426685619,1782743450000,-530.00052968,0.0003268,2]
[426685628,1782743450000,-635.0,0.00032697,30]
[426685616,1782743450000,-1295.66,0.000326,7]
[426685600,1782743450000,-2000.0,0.00032323,7]
[426685612,1782743450000,-681.54,0.00032508,14]
[426685593,1782743450000,-575.04,0.00032232,7]
[426685594,1782743450000,-13018.9,0.00032232,7]
[426685596,1782743450000,-151.09934801,0.00032273,2]
[426685595,1782743450000,-150.0,0.00032262,30]
[426685599,1782743450000,-153.0,0.000323,120]
[426685605,1782743450000,-618.694,0.00032379,30]
[426685604,1782743450000,-153.09925157,0.00032371,7]
[426685601,1782743450000,-180.62042623,0.00032328,2]
[426685602,1782743450000,-6294.41763374,0.0003233,120]
[426685615,1782743450000,-150.0,0.00032583,30]
[426685598,1782743450000,-150.0,0.00032275,30]
[426685603,1782743450000,-150.0,0.00032369,30]
[426685606,1782743450000,-150.0,0.00032383,2]
[426685610,1782743450000,-800.0,0.000325,5]
[426685608,1782743450000,-150.0,0.00032476,30]
[426685609,1782743450000,-10064.13357195,0.000325,2]
[426685607,1782743450000,-150.0,0.00032476,30]
[426685611,1782743450000,-800.0,0.000325,5]
[426685614,1782743450000,-151.09934801,0.00032565,2]
[426685613,1782743450000,-150.0,0.0003254,30]
[426685597,1782743450000,-150.0,0.00032275,30]
[426685637,1782743450000,-225.31,0.00032785,3]
[426685631,1782743450000,-150.0,0.00032717,30]
[426685639,1782743450000,-150.0,0.00032798,30]
[426685668,1782743450000,-13723.48889787,0.00033268,2]
[426685669,1782743450000,-150.0,0.00033333,30]
[426685666,1782743450000,-150.0,0.00033226,30]
[426685667,1782743450000,-150.0,0.00033248,30]
[426685671,1782743450000,-313.63636363,0.00033358,2]
[426685670,1782743450000,-345.34,0.00033334,120]
[426685673,1782743450000,-1950.77,0.00033397,30]
[426685677,1782743450000,-702.9749301,0.00033459,2]
[426685674,1782743450000,-150.0,0.00033441,30]
[426685664,1782743450000,-10064.13357195,0.000332,2]
[426685672,1782743450000,-153.09925157,0.00033371,7]
[426685678,1782743450000,-63029.6147035,0.00033465,2]
[426685676,1782743450000,-151.09934801,0.00033442,2]
[426685680,1782743450000,-10064.13357195,0.000335,2]
[426685679,1782743450000,-200.0,0.00033484,10]
[426685682,1782743450000,-800.0,0.000335,5]
[426685683,1782743450000,-800.0,0.000335,5]
[426685681,1782743450000,-1195.58,0.000335,30]
[426685684,1782743450000,-1195.58,0.00033525,30]
[426685640,1782743450000,-151.09934801,0.00032857,2]
[426685675,1782743450000,-150.0,0.00033441,30]
[426685665,1782743450000,-341.516641,0.000332,7]
[426685685,1782743450000,-222.59569966,0.00033542,7]
[426685662,1782743450000,-150.0,0.00033159,30]
[426685663,1782743450000,-150.0,0.00033159,30]
[426685641,1782743450000,-152.5325826,0.00032861,12]
[426685642,1782743450000,-500.0,0.00032876,14]
[426685645,1782743450000,-3000.0,0.00032876,2]
[426685644,1782743450000,-3000.0,0.00032876,2]
[426685646,1782743450000,-3000.0,0.00032876,2]
[426685648,1782743450000,-2066.7244798,0.00032876,2]
[426685647,1782743450000,-3000.0,0.00032876,2]
[426685649,1782743450000,-181.36,0.00032877,2]
[426685651,1782743450000,-500.0,0.00032877,2]
[426685643,1782743450000,-3000.0,0.00032876,2]
[426685653,1782743450000,-150.0,0.00032905,30]
[426685650,1782743450000,-500.0,0.00032877,2]
[426685659,1782743450000,-150.0,0.00033119,30]
[426685660,1782743450000,-150.0,0.00033119,30]
[426685657,1782743450000,-800.0,0.00033,5]
[426685661,1782743450000,-151.09934801,0.0003315,2]
[426685656,1782743450000,-800.0,0.00033,5]
[426685655,1782743450000,-569.0,0.00032945,3]
[426685652,1782743450000,-10064.13357195,0.000329,2]
[426685654,1782743450000,-206.0,0.00032916,3]
[426685658,1782743450000,-150.0,0.00033012,30]
[426685709,1782743451000,-189.16850594,0.00033639,10]
[426685717,1782743451000,-1737.06,0.00033649,7]
[426685714,1782743451000,-189.16850594,0.00033639,10]
[426685710,1782743451000,-189.16850594,0.00033639,10]
[426685715,1782743451000,-189.16850594,0.00033639,10]
[426685707,1782743451000,-189.16850594,0.00033639,10]
[426685712,1782743451000,-189.16850594,0.00033639,10]
[426685713,1782743451000,-189.16850594,0.00033639,10]
[426685722,1782743451000,-300.0,0.00033671,2]
[426685720,1782743451000,-65502.75413252,0.0003366,2]
[426685716,1782743451000,-188.16850594,0.00033639,10]
[426685719,1782743451000,-1745.0,0.00033655,10]
[426685724,1782743451000,-300.0,0.00033671,2]
[426685723,1782743451000,-300.0,0.00033671,2]
[426685721,1782743451000,-1101.0618519,0.00033671,2]
[426685731,1782743451000,-300.0,0.00033671,2]
[426685711,1782743451000,-189.16850594,0.00033639,10]
[426685730,1782743451000,-300.0,0.00033671,2]
[426685718,1782743451000,-150.0,0.00033655,30]
[426685708,1782743451000,-189.16850594,0.00033639,10]
[426685694,1782743451000,-498.705102,0.0003358,7]
[426685706,1782743451000,-189.16850594,0.00033639,10]
[426685727,1782743451000,-300.0,0.00033671,2]
[426685687,1782743451000,-1195.58,0.0003355,30]
[426685686,1782743451000,-150.0,0.00033548,30]
[426685688,1782743451000,-166.0,0.00033556,7]
[426685690,1782743451000,-1330.38,0.00033575,2]
[426685691,1782743451000,-1553.58,0.00033575,2]
[426685689,1782743451000,-1000.0,0.00033575,2]
[426685692,1782743451000,-1195.58,0.00033575,30]
[426685693,1782743451000,-502.0,0.00033579,17]
[426685696,1782743451000,-150.0,0.00033601,30]
[426685695,1782743451000,-1195.58,0.000336,30]
[426685698,1782743451000,-150.0,0.00033601,30]
[426685697,1782743451000,-150.0,0.00033601,30]
[426685700,1782743451000,-1334.76,0.00033626,2]
[426685701,1782743451000,-189.16850594,0.00033639,10]
[426685699,1782743451000,-198.42541404,0.00033604,2]
[426685704,1782743451000,-189.16850594,0.00033639,10]
[426685705,1782743451000,-189.16850594,0.00033639,10]
[426685703,1782743451000,-189.16850594,0.00033639,10]
[426685702,1782743451000,-189.16850594,0.00033639,10]
[426685725,1782743451000,-300.0,0.00033671,2]
[426685735,1782743451000,-300.0,0.00033671,2]
[426685728,1782743451000,-300.0,0.00033671,2]
[426685749,1782743451000,-300.0,0.00033671,2]
[426685751,1782743451000,-300.0,0.00033671,2]
[426685759,1782743451000,-300.0,0.00033671,2]
[426685757,1782743451000,-300.0,0.00033671,2]
[426685760,1782743451000,-300.0,0.00033671,2]
[426685758,1782743451000,-300.0,0.00033671,2]
[426685764,1782743451000,-300.0,0.00033671,2]
[426685767,1782743451000,-1807.30940739,0.00033671,2]
[426685761,1782743451000,-345.7536,0.00033671,2]
[426685766,1782743451000,-954.30228826,0.00033671,2]
[426685765,1782743451000,-300.0,0.00033671,2]
[426685763,1782743451000,-300.0,0.00033671,2]
[426685762,1782743451000,-300.0,0.00033671,2]
[426685726,1782743451000,-300.0,0.00033671,2]
[426685768,1782743451000,-300.0,0.00033671,2]
[426685770,1782743451000,-576.43989485,0.00033671,2]
[426685773,1782743451000,-300.0,0.00033671,2]
[426685771,1782743451000,-300.0,0.00033671,2]
[426685772,1782743451000,-311.22255108,0.00033671,2]
[426685753,1782743451000,-300.0,0.00033671,2]
[426685752,1782743451000,-302.16203863,0.00033671,2]
[426685769,1782743451000,-300.0,0.00033671,2]
[426685754,1782743451000,-300.0,0.00033671,2]
[426685756,1782743451000,-300.0,0.00033671,2]
[426685729,1782743451000,-300.0,0.00033671,2]
[426685732,1782743451000,-300.0,0.00033671,2]
[426685733,1782743451000,-300.0,0.00033671,2]
[426685736,1782743451000,-300.0,0.00033671,2]
[426685740,1782743451000,-300.0,0.00033671,2]
[426685737,1782743451000,-300.0,0.00033671,2]
[426685738,1782743451000,-300.0,0.00033671,2]
[426685739,1782743451000,-607.84242655,0.00033671,2]